[Event "Early-Titled-Tuesday-Blitz-June-18-2024"]
[Site "Chess.com"]
[Date "2024.06.18"]
[Round "1"]
[White "ninguno46"]
[Black "shirovin"]
[Result "1-0"]
[WhiteElo "2565"]
[BlackElo "2085"]
[TimeControl "180+1"]
[EndTime "8:04:47 PDT"]
[Termination "ninguno46 won by resignation"]

1. e4 {[%clk 0:02:55.8]} 1... Nf6 {[%clk 0:02:58.2]} 2. e5 {[%clk 0:02:55.5]}
2... Nd5 {[%clk 0:02:58.7]} 3. d4 {[%clk 0:02:56.2]} 3... d6 {[%clk 0:02:58.7]}
4. c4 {[%clk 0:02:57.1]} 4... Nb6 {[%clk 0:02:57.7]} 5. exd6 {[%clk 0:02:58]}
5... exd6 {[%clk 0:02:56.7]} 6. Nc3 {[%clk 0:02:58.5]} 6... Nc6 {[%clk 0:02:56]}
7. Be3 {[%clk 0:02:57.5]} 7... Be7 {[%clk 0:02:54]} 8. h3 {[%clk 0:02:57.1]}
8... O-O {[%clk 0:02:50.9]} 9. Nf3 {[%clk 0:02:57.6]} 9... Bf6 {[%clk
0:02:42.7]} 10. Be2 {[%clk 0:02:49.9]} 10... Re8 {[%clk 0:02:37.2]} 11. O-O
{[%clk 0:02:49.3]} 11... Bf5 {[%clk 0:02:31.6]} 12. Rc1 {[%clk 0:02:46.7]} 12...
Qd7 {[%clk 0:02:13.2]} 13. Qd2 {[%clk 0:02:45.8]} 13... Bg6 {[%clk 0:02:11.5]}
14. b3 {[%clk 0:02:44.4]} 14... a5 {[%clk 0:02:08.7]} 15. d5 {[%clk 0:02:43.6]}
15... Nb8 {[%clk 0:02:01.9]} 16. Nd4 {[%clk 0:02:43]} 16... Bxd4 {[%clk
0:01:46.9]} 17. Bxd4 {[%clk 0:02:41.4]} 17... Na6 {[%clk 0:01:44.4]} 18. f4
{[%clk 0:02:21.9]} 18... Nc5 {[%clk 0:01:39.8]} 19. Bf3 {[%clk 0:02:18]} 19...
Ne4 {[%clk 0:01:37.9]} 20. Bxe4 {[%clk 0:02:15.9]} 20... Bxe4 {[%clk 0:01:36.9]}
21. g4 {[%clk 0:02:10.9]} 21... f5 {[%clk 0:01:35.5]} 22. Rce1 {[%clk
0:02:04.8]} 22... Qf7 {[%clk 0:01:25.2]} 23. Nxe4 {[%clk 0:02:02.6]} 23... Rxe4
{[%clk 0:01:21.7]} 24. Rxe4 {[%clk 0:02:01.8]} 24... fxe4 {[%clk 0:01:21]} 25.
f5 {[%clk 0:01:55.3]} 25... a4 {[%clk 0:01:14.9]} 26. Re1 {[%clk 0:01:52.8]}
26... axb3 {[%clk 0:01:12.8]} 27. axb3 {[%clk 0:01:53.7]} 27... Re8 {[%clk
0:01:07]} 28. Qf4 {[%clk 0:01:50.8]} 28... Qe7 {[%clk 0:01:03.5]} 29. f6 {[%clk
0:01:47]} 29... gxf6 {[%clk 0:01:01.8]} 30. Bxf6 {[%clk 0:01:46.6]} 30... Rf8
{[%clk 0:00:52.2]} 31. Qg5+ {[%clk 0:01:46]} 1-0

[Event "Early-Titled-Tuesday-Blitz-June-18-2024"]
[Site "Chess.com"]
[Date "2024.06.18"]
[Round "1"]
[White "ArrestingPieces"]
[Black "luachess1"]
[Result "1-0"]
[WhiteElo "2551"]
[BlackElo "1912"]
[TimeControl "180+1"]
[EndTime "8:05:00 PDT"]
[Termination "ArrestingPieces won on time"]

1. e4 {[%clk 0:03:00.9]} 1... e6 {[%clk 0:02:58]} 2. d4 {[%clk 0:03:00.4]} 2...
d5 {[%clk 0:02:56.6]} 3. Nd2 {[%clk 0:02:59.9]} 3... Nf6 {[%clk 0:02:54.6]} 4.
e5 {[%clk 0:03:00.1]} 4... Nfd7 {[%clk 0:02:54.6]} 5. Bd3 {[%clk 0:03:00.6]}
5... c5 {[%clk 0:02:53.5]} 6. c3 {[%clk 0:03:01.1]} 6... Nc6 {[%clk 0:02:51]} 7.
Ne2 {[%clk 0:03:00.6]} 7... Qb6 {[%clk 0:02:50.7]} 8. Nf3 {[%clk 0:02:58.9]}
8... Be7 {[%clk 0:02:44.5]} 9. O-O {[%clk 0:02:58.5]} 9... O-O {[%clk
0:02:44.1]} 10. Nf4 {[%clk 0:02:58.9]} 10... cxd4 {[%clk 0:02:37.5]} 11. cxd4
{[%clk 0:02:57.8]} 11... h6 {[%clk 0:01:51.6]} 12. Bb1 {[%clk 0:02:35.6]} 12...
Nd8 {[%clk 0:00:54.7]} 13. Qd3 {[%clk 0:02:14.6]} 13... f5 {[%clk 0:00:32.7]}
14. exf6 {[%clk 0:02:13.8]} 14... Nxf6 {[%clk 0:00:32.7]} 15. Ne5 {[%clk
0:02:14.1]} 15... Qd6 {[%clk 0:00:20]} 16. Nfg6 {[%clk 0:02:12.6]} 16... Re8
{[%clk 0:00:18.5]} 17. Qh3 {[%clk 0:02:04.4]} 17... Nf7 {[%clk 0:00:18]} 18.
Bxh6 {[%clk 0:02:02.6]} 18... Nxe5 {[%clk 0:00:16.1]} 19. dxe5 {[%clk
0:02:01.8]} 19... Qxe5 {[%clk 0:00:14.8]} 20. Nxe5 {[%clk 0:02:00]} 20... gxh6
{[%clk 0:00:13.5]} 21. Qxh6 {[%clk 0:01:59.5]} 1-0

[Event "Early-Titled-Tuesday-Blitz-June-18-2024"]
[Site "Chess.com"]
[Date "2024.06.18"]
[Round "1"]
[White "Aygehovit1992"]
[Black "CFalcons8"]
[Result "1-0"]
[WhiteElo "2792"]
[BlackElo "2454"]
[TimeControl "180+1"]
[EndTime "8:05:05 PDT"]
[Termination "Aygehovit1992 won by checkmate"]

1. e4 {[%clk 0:02:44.3]} 1... e5 {[%clk 0:02:56.3]} 2. Nf3 {[%clk 0:02:42.3]}
2... Nc6 {[%clk 0:02:56.7]} 3. Bb5 {[%clk 0:02:41.5]} 3... a6 {[%clk 0:02:56.5]}
4. Ba4 {[%clk 0:02:41.8]} 4... Nf6 {[%clk 0:02:56.3]} 5. O-O {[%clk 0:02:41.1]}
5... Be7 {[%clk 0:02:55.4]} 6. Re1 {[%clk 0:02:39]} 6... b5 {[%clk 0:02:55.1]}
7. Bb3 {[%clk 0:02:39.1]} 7... O-O {[%clk 0:02:54.6]} 8. a4 {[%clk 0:02:38.9]}
8... Bb7 {[%clk 0:02:50.5]} 9. d3 {[%clk 0:02:29]} 9... d6 {[%clk 0:02:33.7]}
10. Nc3 {[%clk 0:02:23.6]} 10... b4 {[%clk 0:02:32.8]} 11. Nd5 {[%clk
0:02:20.6]} 11... Rb8 {[%clk 0:02:10.1]} 12. a5 {[%clk 0:02:19.5]} 12... Nxd5
{[%clk 0:02:06.3]} 13. exd5 {[%clk 0:02:15.2]} 13... Na7 {[%clk 0:02:05.6]} 14.
d4 {[%clk 0:02:12]} 14... exd4 {[%clk 0:02:00.6]} 15. Nxd4 {[%clk 0:02:12.9]}
15... Bf6 {[%clk 0:01:58.9]} 16. Nf5 {[%clk 0:02:02.9]} 16... Qd7 {[%clk
0:01:53.9]} 17. Qg4 {[%clk 0:02:01.3]} 17... Kh8 {[%clk 0:01:46.3]} 18. Bg5
{[%clk 0:01:59.6]} 18... Bxb2 {[%clk 0:01:42.2]} 19. Re7 {[%clk 0:01:58.1]}
19... Qb5 {[%clk 0:01:35.8]} 20. Bc4 {[%clk 0:01:26.1]} 20... Qc5 {[%clk
0:01:28.9]} 21. Be3 {[%clk 0:01:23.2]} 21... Qxe3 {[%clk 0:01:16.9]} 22. Rxe3
{[%clk 0:00:59.7]} 22... Bxa1 {[%clk 0:01:17.2]} 23. Rh3 {[%clk 0:01:00.4]}
23... Bc8 {[%clk 0:01:07.7]} 24. Rxh7+ {[%clk 0:00:55.2]} 24... Kxh7 {[%clk
0:01:08.6]} 25. Qh5+ {[%clk 0:00:54.9]} 25... Kg8 {[%clk 0:01:08.2]} 26. Ne7#
{[%clk 0:00:54.7]} 1-0

[Event "Early-Titled-Tuesday-Blitz-June-18-2024"]
[Site "Chess.com"]
[Date "2024.06.18"]
[Round "1"]
[White "Rutricks"]
[Black "falzehope0"]
[Result "1-0"]
[WhiteElo "2755"]
[BlackElo "2424"]
[TimeControl "180+1"]
[EndTime "8:05:05 PDT"]
[Termination "Rutricks won by resignation"]

1. Nc3 {[%clk 0:02:46]} 1... d6 {[%clk 0:03:00.9]} 2. d4 {[%clk 0:02:44.9]} 2...
Nf6 {[%clk 0:03:00.1]} 3. g3 {[%clk 0:02:45]} 3... Nbd7 {[%clk 0:03:00.4]} 4.
Bg2 {[%clk 0:02:45.9]} 4... e5 {[%clk 0:03:00.5]} 5. Nf3 {[%clk 0:02:45.9]} 5...
Be7 {[%clk 0:03:00.6]} 6. dxe5 {[%clk 0:02:46]} 6... dxe5 {[%clk 0:02:59.2]} 7.
e4 {[%clk 0:02:45.8]} 7... O-O {[%clk 0:02:59.5]} 8. Qe2 {[%clk 0:02:46.5]} 8...
c6 {[%clk 0:02:59.6]} 9. h3 {[%clk 0:02:46.7]} 9... Qc7 {[%clk 0:02:59.5]} 10.
O-O {[%clk 0:02:46.9]} 10... Re8 {[%clk 0:03:00]} 11. a4 {[%clk 0:02:44.6]}
11... Nf8 {[%clk 0:02:59.9]} 12. a5 {[%clk 0:02:45]} 12... Ng6 {[%clk
0:03:00.1]} 13. a6 {[%clk 0:02:45]} 13... b6 {[%clk 0:02:59.7]} 14. b3 {[%clk
0:02:41]} 14... h6 {[%clk 0:02:58.3]} 15. Bb2 {[%clk 0:02:40.9]} 15... Bd7
{[%clk 0:02:55.7]} 16. Nb1 {[%clk 0:02:37.5]} 16... Bf8 {[%clk 0:02:54.8]} 17.
Nbd2 {[%clk 0:02:37.7]} 17... Qc8 {[%clk 0:02:54.7]} 18. Kh2 {[%clk 0:02:37.5]}
18... Nh7 {[%clk 0:02:53.8]} 19. Nc4 {[%clk 0:02:37.6]} 19... Qc7 {[%clk
0:02:50.7]} 20. Ne3 {[%clk 0:02:35.5]} 20... Qc8 {[%clk 0:02:50]} 21. Nf5 {[%clk
0:02:35]} 21... Bxf5 {[%clk 0:02:47.4]} 22. exf5 {[%clk 0:02:35.9]} 22... Qxf5
{[%clk 0:02:47.1]} 23. Nd2 {[%clk 0:02:36.6]} 23... Qe6 {[%clk 0:02:44.3]} 24.
Rfe1 {[%clk 0:02:27.4]} 24... Rac8 {[%clk 0:02:42.9]} 25. Nc4 {[%clk 0:02:21.5]}
25... f6 {[%clk 0:02:38.7]} 26. Ne3 {[%clk 0:02:19.9]} 26... Ng5 {[%clk
0:02:34.2]} 27. h4 {[%clk 0:02:20.1]} 27... Nh7 {[%clk 0:02:33.8]} 28. Be4
{[%clk 0:02:19.6]} 28... Ne7 {[%clk 0:02:32.8]} 29. Qd3 {[%clk 0:02:19.4]} 29...
f5 {[%clk 0:02:15.2]} 30. Nxf5 {[%clk 0:02:17.9]} 30... Nf6 {[%clk 0:02:14.3]}
31. Nxe7+ {[%clk 0:02:12.9]} 31... Qxe7 {[%clk 0:02:11.5]} 32. Bf5 {[%clk
0:02:13.3]} 32... Rcd8 {[%clk 0:02:10.6]} 33. Qc4+ {[%clk 0:02:13.5]} 33... Kh8
{[%clk 0:02:06.1]} 34. Rxe5 {[%clk 0:01:57]} 34... Qc7 {[%clk 0:02:04.9]} 35.
Rae1 {[%clk 0:01:56.7]} 35... Bd6 {[%clk 0:01:45.9]} 36. Rxe8+ {[%clk
0:01:50.9]} 36... Nxe8 {[%clk 0:01:46.8]} 37. Qe6 {[%clk 0:01:50.3]} 37... Nf6
{[%clk 0:01:45.9]} 38. Bxf6 {[%clk 0:01:49.9]} 38... gxf6 {[%clk 0:01:41.6]} 39.
Qxf6+ {[%clk 0:01:50.8]} 39... Kg8 {[%clk 0:01:41.1]} 40. Qxh6 {[%clk
0:01:49.2]} 40... Rf8 {[%clk 0:01:37.9]} 41. Be6+ {[%clk 0:01:49]} 41... Rf7
{[%clk 0:01:37.6]} 42. Bxf7+ {[%clk 0:01:46.2]} 42... Kxf7 {[%clk 0:01:36.6]}
43. Qe6+ {[%clk 0:01:44.5]} 43... Kf8 {[%clk 0:01:35.4]} 44. Re3 {[%clk
0:01:44.1]} 44... Kg7 {[%clk 0:01:32.7]} 45. Re4 {[%clk 0:01:43.1]} 45... Bc5
{[%clk 0:01:26.5]} 46. Rg4+ {[%clk 0:01:43]} 46... Kh7 {[%clk 0:01:13.6]} 47.
Qg8+ {[%clk 0:01:39.7]} 1-0

[Event "Early-Titled-Tuesday-Blitz-June-18-2024"]
[Site "Chess.com"]
[Date "2024.06.18"]
[Round "1"]
[White "palombie"]
[Black "kleinebeer98"]
[Result "0-1"]
[WhiteElo "2518"]
[BlackElo "2943"]
[TimeControl "180+1"]
[EndTime "8:05:12 PDT"]
[Termination "kleinebeer98 won by resignation"]

1. e4 {[%clk 0:03:00.9]} 1... e5 {[%clk 0:02:57.3]} 2. Nf3 {[%clk 0:02:57]} 2...
Nc6 {[%clk 0:02:58]} 3. Bb5 {[%clk 0:02:51.4]} 3... f5 {[%clk 0:02:58]} 4. Bxc6
{[%clk 0:01:52.1]} 4... dxc6 {[%clk 0:02:57.9]} 5. Nc3 {[%clk 0:01:45.2]} 5...
Nf6 {[%clk 0:02:57.6]} 6. Qe2 {[%clk 0:01:40.8]} 6... Bd6 {[%clk 0:02:58.1]} 7.
d4 {[%clk 0:01:36.9]} 7... exd4 {[%clk 0:02:57.5]} 8. e5 {[%clk 0:01:34.2]} 8...
O-O {[%clk 0:02:54.3]} 9. Qc4+ {[%clk 0:01:21.9]} 9... Kh8 {[%clk 0:02:53.7]}
10. Ne2 {[%clk 0:01:22.5]} 10... b5 {[%clk 0:02:46.8]} 11. Qb3 {[%clk
0:01:21.1]} 11... c5 {[%clk 0:02:40.3]} 12. exd6 {[%clk 0:01:17.7]} 12... Qxd6
{[%clk 0:02:35.1]} 13. O-O {[%clk 0:01:17.6]} 13... Nd5 {[%clk 0:02:30.7]} 14.
Ng3 {[%clk 0:01:15.3]} 14... a6 {[%clk 0:02:26.6]} 15. a4 {[%clk 0:01:14.9]}
15... c4 {[%clk 0:02:21.8]} 16. Qa3 {[%clk 0:01:13.9]} 16... b4 {[%clk
0:02:22.1]} 17. Qa2 {[%clk 0:01:14.3]} 17... Qc5 {[%clk 0:02:22.8]} 18. Nd2
{[%clk 0:01:09.4]} 18... c3 {[%clk 0:02:22]} 19. Nf3 {[%clk 0:01:08.1]} 19...
Be6 {[%clk 0:02:21.2]} 20. bxc3 {[%clk 0:01:06.9]} 20... dxc3 {[%clk 0:02:19.9]}
21. Ng5 {[%clk 0:01:06.1]} 21... Bg8 {[%clk 0:02:20.1]} 22. Qb1 {[%clk
0:01:06.1]} 22... Rab8 {[%clk 0:02:19.7]} 23. Ne2 {[%clk 0:01:06]} 23... h6
{[%clk 0:02:19.7]} 24. Nf3 {[%clk 0:01:04.9]} 24... Qc4 {[%clk 0:02:20.4]} 25.
Qb3 {[%clk 0:01:00.8]} 25... Qxe2 {[%clk 0:02:20.4]} 26. Re1 {[%clk 0:00:58.9]}
26... Nf4 {[%clk 0:02:12.2]} 27. Bxf4 {[%clk 0:00:52.4]} 27... Qxe1+ {[%clk
0:02:09]} 28. Rxe1 {[%clk 0:00:53.3]} 28... Bxb3 {[%clk 0:02:09.4]} 29. cxb3
{[%clk 0:00:54.2]} 29... Rfe8 {[%clk 0:02:09.5]} 30. Rc1 {[%clk 0:00:51.4]}
30... Re7 {[%clk 0:02:04.4]} 31. Ne5 {[%clk 0:00:51.7]} 31... Re6 {[%clk
0:02:02.9]} 32. h4 {[%clk 0:00:48]} 32... Rbe8 {[%clk 0:02:01.5]} 33. Nd3 {[%clk
0:00:47]} 33... a5 {[%clk 0:01:56.2]} 34. Be3 {[%clk 0:00:47.5]} 34... Rd6
{[%clk 0:01:54.1]} 35. Nf4 {[%clk 0:00:45.4]} 35... Red8 {[%clk 0:01:54.6]} 36.
Kh2 {[%clk 0:00:44.5]} 36... g5 {[%clk 0:01:54.2]} 37. hxg5 {[%clk 0:00:43.2]}
37... hxg5 {[%clk 0:01:55.1]} 38. Nh3 {[%clk 0:00:42.5]} 38... f4 {[%clk
0:01:55.8]} 39. Bc5 {[%clk 0:00:41.8]} 39... Rd1 {[%clk 0:01:56.5]} 40. Rxd1
{[%clk 0:00:35]} 40... Rxd1 {[%clk 0:01:56.8]} 41. Nxg5 {[%clk 0:00:35.1]} 41...
c2 {[%clk 0:01:57.1]} 0-1

[Event "Early-Titled-Tuesday-Blitz-June-18-2024"]
[Site "Chess.com"]
[Date "2024.06.18"]
[Round "1"]
[White "lagedema"]
[Black "Alex_Sahakyan2006"]
[Result "0-1"]
[WhiteElo "2437"]
[BlackElo "2774"]
[TimeControl "180+1"]
[EndTime "8:05:14 PDT"]
[Termination "Alex_Sahakyan2006 won by resignation"]

1. d4 {[%clk 0:03:00.9]} 1... Nf6 {[%clk 0:02:59.6]} 2. Bg5 {[%clk 0:03:00.9]}
2... c5 {[%clk 0:02:50.5]} 3. d5 {[%clk 0:02:56.1]} 3... Qb6 {[%clk 0:02:45.2]}
4. b3 {[%clk 0:02:43.6]} 4... Ne4 {[%clk 0:02:44.4]} 5. Bd2 {[%clk 0:02:37.3]}
5... Qf6 {[%clk 0:02:42.5]} 6. f3 {[%clk 0:02:24.6]} 6... Qh4+ {[%clk 0:02:30]}
7. g3 {[%clk 0:02:24.8]} 7... Nxg3 {[%clk 0:02:30.1]} 8. Bg5 {[%clk 0:02:15.2]}
8... Qxg5 {[%clk 0:02:24.4]} 9. hxg3 {[%clk 0:02:15.5]} 9... Qxg3+ {[%clk
0:02:25.3]} 10. Kd2 {[%clk 0:02:15.7]} 10... Qe5 {[%clk 0:02:06.7]} 11. Na3
{[%clk 0:01:55.8]} 11... Qd4+ {[%clk 0:02:00.1]} 12. Ke1 {[%clk 0:01:55]} 12...
Qb4+ {[%clk 0:01:58.9]} 13. c3 {[%clk 0:01:52.7]} 13... Qxa3 {[%clk 0:01:57.6]}
14. e4 {[%clk 0:01:53.4]} 14... g6 {[%clk 0:01:53.1]} 15. Ne2 {[%clk 0:01:50.9]}
15... Bg7 {[%clk 0:01:52.8]} 16. Qd2 {[%clk 0:01:49.2]} 16... d6 {[%clk
0:01:49.7]} 17. Bh3 {[%clk 0:01:46.8]} 17... Bxh3 {[%clk 0:01:49.2]} 18. Rxh3
{[%clk 0:01:47.7]} 18... Nd7 {[%clk 0:01:49.1]} 19. f4 {[%clk 0:01:47.1]} 19...
h5 {[%clk 0:01:45.8]} 20. e5 {[%clk 0:01:42.6]} 20... dxe5 {[%clk 0:01:40.1]}
21. f5 {[%clk 0:01:43]} 21... gxf5 {[%clk 0:01:37.1]} 22. Qg5 {[%clk 0:01:42.8]}
22... Bf6 {[%clk 0:01:34.6]} 23. Qxf5 {[%clk 0:01:38.3]} 23... Rg8 {[%clk
0:01:30.4]} 24. Qh7 {[%clk 0:01:28.2]} 24... O-O-O {[%clk 0:01:28.5]} 25. Qxf7
{[%clk 0:01:27.5]} 25... Qb2 {[%clk 0:01:22.1]} 26. Rc1 {[%clk 0:01:27.8]} 26...
Rg2 {[%clk 0:01:21]} 27. Qxh5 {[%clk 0:01:26.5]} 27... Rxe2+ {[%clk 0:01:19.9]}
28. Qxe2 {[%clk 0:01:27.2]} 28... Qxc1+ {[%clk 0:01:20.1]} 29. Kf2 {[%clk
0:01:27.8]} 29... Rf8 {[%clk 0:01:13.8]} 30. Kg2 {[%clk 0:01:23.6]} 30... Rg8+
{[%clk 0:01:12.3]} 31. Rg3 {[%clk 0:01:24]} 31... Rxg3+ {[%clk 0:01:12]} 32.
Kxg3 {[%clk 0:01:24.9]} 32... Qxc3+ {[%clk 0:01:11.8]} 33. Kg4 {[%clk
0:01:23.3]} 33... Qd4+ {[%clk 0:01:10]} 34. Kf5 {[%clk 0:01:23.1]} 34... Qxd5
{[%clk 0:01:10.2]} 35. Qh5 {[%clk 0:01:19.4]} 35... e4+ {[%clk 0:01:10.2]} 36.
Kg6 {[%clk 0:01:19.4]} 36... Qxh5+ {[%clk 0:01:10.5]} 37. Kxh5 {[%clk
0:01:19.7]} 37... e3 {[%clk 0:01:11.4]} 38. b4 {[%clk 0:01:19.9]} 38... e2
{[%clk 0:01:12.3]} 39. bxc5 {[%clk 0:01:20.5]} 39... e1=Q {[%clk 0:01:13.2]} 40.
c6 {[%clk 0:01:21.2]} 40... Ne5 {[%clk 0:01:12.6]} 41. cxb7+ {[%clk 0:01:16.5]}
41... Kb8 {[%clk 0:01:11.9]} 0-1

[Event "Early-Titled-Tuesday-Blitz-June-18-2024"]
[Site "Chess.com"]
[Date "2024.06.18"]
[Round "1"]
[White "Juicy_Fork"]
[Black "Forge13"]
[Result "1-0"]
[WhiteElo "2411"]
[BlackElo "2692"]
[TimeControl "180+1"]
[EndTime "8:05:16 PDT"]
[Termination "Juicy_Fork won by checkmate"]

1. e4 {[%clk 0:02:54.8]} 1... e6 {[%clk 0:03:00]} 2. d4 {[%clk 0:02:54]} 2... d5
{[%clk 0:03:00.6]} 3. Nc3 {[%clk 0:02:54.1]} 3... Nf6 {[%clk 0:03:00.8]} 4. Bg5
{[%clk 0:02:52.8]} 4... dxe4 {[%clk 0:03:01]} 5. Nxe4 {[%clk 0:02:51.5]} 5...
Be7 {[%clk 0:03:01.6]} 6. Bxf6 {[%clk 0:02:47.3]} 6... gxf6 {[%clk 0:03:00.6]}
7. c3 {[%clk 0:02:47.2]} 7... f5 {[%clk 0:02:59.5]} 8. Ng3 {[%clk 0:02:47]} 8...
c5 {[%clk 0:02:55.3]} 9. Nf3 {[%clk 0:02:45.1]} 9... Nc6 {[%clk 0:02:55.1]} 10.
Bb5 {[%clk 0:02:44.2]} 10... Qb6 {[%clk 0:02:54.1]} 11. a4 {[%clk 0:02:39.2]}
11... a6 {[%clk 0:02:50.4]} 12. Bxc6+ {[%clk 0:02:34.8]} 12... bxc6 {[%clk
0:02:51.3]} 13. dxc5 {[%clk 0:02:30.4]} 13... Bxc5 {[%clk 0:02:52.2]} 14. O-O
{[%clk 0:02:30.4]} 14... a5 {[%clk 0:02:49.5]} 15. Rb1 {[%clk 0:02:24.4]} 15...
Ba6 {[%clk 0:02:49.1]} 16. Re1 {[%clk 0:02:25.1]} 16... Bxf2+ {[%clk 0:02:48]}
17. Kh1 {[%clk 0:02:25.7]} 17... Bxe1 {[%clk 0:02:43.9]} 18. Qxe1 {[%clk
0:02:26.6]} 18... O-O {[%clk 0:02:39.8]} 19. Nh5 {[%clk 0:02:08.6]} 19... Qc7
{[%clk 0:02:39]} 20. Nf6+ {[%clk 0:02:01.1]} 20... Kg7 {[%clk 0:02:32.1]} 21.
Qh4 {[%clk 0:01:57.3]} 21... h6 {[%clk 0:02:14.5]} 22. Nh5+ {[%clk 0:01:53.9]}
22... Kh7 {[%clk 0:02:11]} 23. Nf6+ {[%clk 0:01:29.8]} 23... Kg6 {[%clk
0:01:58]} 24. g4 {[%clk 0:01:29.8]} 24... f4 {[%clk 0:01:42.9]} 25. g5 {[%clk
0:01:16.8]} 25... h5 {[%clk 0:01:01.6]} 26. Qxh5+ {[%clk 0:01:11.6]} 26... Kf5
{[%clk 0:01:01.8]} 27. Re1 {[%clk 0:01:01.1]} 27... Rh8 {[%clk 0:00:58.6]} 28.
Nh4# {[%clk 0:01:00.6]} 1-0

[Event "Early-Titled-Tuesday-Blitz-June-18-2024"]
[Site "Chess.com"]
[Date "2024.06.18"]
[Round "1"]
[White "Ati1517"]
[Black "aksuliini1"]
[Result "0-1"]
[WhiteElo "2003"]
[BlackElo "2562"]
[TimeControl "180+1"]
[EndTime "8:05:17 PDT"]
[Termination "aksuliini1 won by resignation"]

1. e4 {[%clk 0:03:00.1]} 1... c6 {[%clk 0:02:59.3]} 2. d4 {[%clk 0:02:59.3]}
2... d5 {[%clk 0:03:00.2]} 3. Nc3 {[%clk 0:02:58.7]} 3... dxe4 {[%clk
0:02:52.9]} 4. Nxe4 {[%clk 0:02:59.6]} 4... Nf6 {[%clk 0:02:48.5]} 5. Nxf6+
{[%clk 0:02:57.8]} 5... exf6 {[%clk 0:02:49.4]} 6. Bc4 {[%clk 0:02:56.2]} 6...
Bd6 {[%clk 0:02:49.8]} 7. Qe2+ {[%clk 0:02:57.1]} 7... Qe7 {[%clk 0:02:47.7]} 8.
Qxe7+ {[%clk 0:02:56.9]} 8... Kxe7 {[%clk 0:02:45.8]} 9. Be3 {[%clk 0:02:57.8]}
9... Be6 {[%clk 0:02:38.9]} 10. Bd3 {[%clk 0:02:55.8]} 10... Nd7 {[%clk
0:02:27.4]} 11. O-O-O {[%clk 0:02:51.9]} 11... Nb6 {[%clk 0:02:26.7]} 12. a3
{[%clk 0:02:49.5]} 12... Nc4 {[%clk 0:02:21.3]} 13. Ne2 {[%clk 0:02:48.5]} 13...
Nxe3 {[%clk 0:02:07.1]} 14. fxe3 {[%clk 0:02:49.4]} 14... Rhe8 {[%clk
0:01:56.4]} 15. e4 {[%clk 0:02:38.4]} 15... Kf8 {[%clk 0:01:54.6]} 16. h3 {[%clk
0:02:32.1]} 16... Rad8 {[%clk 0:01:38.6]} 17. c4 {[%clk 0:02:26.9]} 17... c5
{[%clk 0:01:31.5]} 18. d5 {[%clk 0:02:19.7]} 18... Bd7 {[%clk 0:01:31.1]} 19.
Rhf1 {[%clk 0:02:15]} 19... Be5 {[%clk 0:01:28.4]} 20. g4 {[%clk 0:02:13.7]}
20... g6 {[%clk 0:01:22.2]} 21. Rf3 {[%clk 0:02:08.5]} 21... Kg7 {[%clk
0:01:21.4]} 22. Rdf1 {[%clk 0:02:07.7]} 22... Re7 {[%clk 0:01:06.1]} 23. Nc3
{[%clk 0:01:56.2]} 23... Rh8 {[%clk 0:01:05.4]} 24. Kc2 {[%clk 0:01:52.4]} 24...
h5 {[%clk 0:01:04.7]} 25. d6 {[%clk 0:01:37.8]} 25... Re6 {[%clk 0:00:57.1]} 26.
Nd5 {[%clk 0:01:37.3]} 26... hxg4 {[%clk 0:00:53.9]} 27. hxg4 {[%clk 0:01:37]}
27... Rxd6 {[%clk 0:00:54.4]} 28. g5 {[%clk 0:01:37.5]} 28... Rh2+ {[%clk
0:00:52.3]} 29. Kd1 {[%clk 0:01:29.7]} 29... Bg4 {[%clk 0:00:50.3]} 30. gxf6+
{[%clk 0:01:27.9]} 30... Bxf6 {[%clk 0:00:47.5]} 0-1

[Event "Early-Titled-Tuesday-Blitz-June-18-2024"]
[Site "Chess.com"]
[Date "2024.06.18"]
[Round "1"]
[White "Stouuf"]
[Black "inagreV"]
[Result "1-0"]
[WhiteElo "2766"]
[BlackElo "2428"]
[TimeControl "180+1"]
[EndTime "8:05:21 PDT"]
[Termination "Stouuf won by resignation"]

1. e4 {[%clk 0:03:00.9]} 1... Nc6 {[%clk 0:02:58.8]} 2. Nf3 {[%clk 0:02:59]}
2... d6 {[%clk 0:02:58.7]} 3. d4 {[%clk 0:02:58.4]} 3... Nf6 {[%clk 0:02:58.8]}
4. Nc3 {[%clk 0:02:56.9]} 4... g6 {[%clk 0:02:58.7]} 5. h3 {[%clk 0:02:55.7]}
5... Bg7 {[%clk 0:02:58.6]} 6. Be3 {[%clk 0:02:56.2]} 6... O-O {[%clk
0:02:58.7]} 7. Qd2 {[%clk 0:02:56.5]} 7... a6 {[%clk 0:02:56.4]} 8. d5 {[%clk
0:02:50.1]} 8... Nb8 {[%clk 0:02:55]} 9. O-O-O {[%clk 0:02:49.1]} 9... c6 {[%clk
0:02:53.6]} 10. Kb1 {[%clk 0:02:47.6]} 10... b5 {[%clk 0:02:52.5]} 11. a3 {[%clk
0:02:27.8]} 11... Bb7 {[%clk 0:02:43.2]} 12. Bh6 {[%clk 0:02:26.8]} 12... cxd5
{[%clk 0:02:40.1]} 13. Bxg7 {[%clk 0:02:25.3]} 13... Kxg7 {[%clk 0:02:41]} 14.
exd5 {[%clk 0:02:25]} 14... Nbd7 {[%clk 0:02:40.6]} 15. Qd4 {[%clk 0:02:05.3]}
15... Nb6 {[%clk 0:02:36.4]} 16. g4 {[%clk 0:02:05.4]} 16... Kg8 {[%clk
0:02:33.7]} 17. Bg2 {[%clk 0:01:57.8]} 17... Nfxd5 {[%clk 0:02:20]} 18. Nxd5
{[%clk 0:01:57.2]} 18... Bxd5 {[%clk 0:02:12.6]} 19. Rhe1 {[%clk 0:01:57.8]}
19... Rc8 {[%clk 0:02:05.3]} 20. Nh4 {[%clk 0:01:53.5]} 20... Bxg2 {[%clk
0:02:04.2]} 21. Nxg2 {[%clk 0:01:54.4]} 21... Nc4 {[%clk 0:01:59.8]} 22. Ne3
{[%clk 0:01:53.4]} 22... Qd7 {[%clk 0:01:48.7]} 23. Nd5 {[%clk 0:01:53]} 23...
Rfe8 {[%clk 0:00:19.1]} 24. Rxe7 {[%clk 0:01:50.5]} 24... Qxe7 {[%clk
0:00:19.4]} 25. Nxe7+ {[%clk 0:01:50.4]} 25... Rxe7 {[%clk 0:00:20.3]} 26. h4
{[%clk 0:01:45.6]} 26... Re2 {[%clk 0:00:19.9]} 27. h5 {[%clk 0:01:45.6]} 27...
Rce8 {[%clk 0:00:07.4]} 28. h6 {[%clk 0:01:45.6]} 28... R2e5 {[%clk 0:00:05.9]}
29. f4 {[%clk 0:01:46]} 1-0